bitfinex-derivatives/quotes_BTCF0:USTF0_20260131
["timestamp","ask_amount","ask_price","bid_price","bid_amount"]
[1769850490309,0.29454447,83207.0,83183.0,0.27178757]
[1769850490510,0.10836,83207.0,83183.0,0.27178757]
[1769850490811,0.10836,83215.0,83184.0,0.012041]
[1769850491017,0.10836,83215.0,83185.0,0.27178757]
[1769850491218,0.29454447,83210.0,83182.0,0.10836]
[1769850495718,0.10836,83215.0,83183.0,0.27178757]
[1769850496026,0.10836,83215.0,83182.0,0.10836]
[1769850496027,0.10836,83215.0,83187.0,0.27178757]
[1769850496224,0.10836,83215.0,83193.0,0.27178757]
[1769850496415,0.10836,83215.0,83195.0,0.27178757]
[1769850500819,0.29454447,83214.0,83194.0,0.10836]
[1769850501025,0.29454447,83211.0,83187.0,0.10836]
[1769850501835,0.30658147,83211.0,83187.0,0.10836]
[1769850502832,0.29454447,83211.0,83187.0,0.38014757]
[1769850503221,0.29454447,83211.0,83188.0,0.27178757]
[1769850503426,0.29454447,83211.0,83187.0,0.10836]
[1769850504532,0.29454447,83209.0,83187.0,0.10836]
[1769850504732,0.10836,83215.0,83188.0,0.27178757]
[1769850505136,0.10836,83215.0,83189.0,0.28382757]
[1769850505334,0.10836,83215.0,83189.0,0.27178757]
[1769850505840,0.29454447,83225.0,83197.0,0.27178757]
[1769850506027,0.29454447,83225.0,83199.0,0.27178757]
[1769850506228,0.29454447,83225.0,83201.0,0.27178757]
[1769850512040,0.10836,83228.0,83205.0,0.27178757]
[1769850512340,0.06512388,83245.0,83200.0,0.10836]
[1769850512341,0.10832,83240.0,83217.0,0.27178757]
[1769850512541,0.10832,83243.0,83221.0,0.27178757]
[1769850512741,0.10832,83243.0,83223.0,0.27178757]
[1769850513840,0.10932,83243.0,83223.0,0.27178757]
[1769850514639,0.29454447,83242.0,83215.0,0.27178757]
[1769850515042,0.29454447,83242.0,83217.0,0.27178757]
[1769850515638,0.29454447,83242.0,83209.0,0.59216]
[1769850515838,0.10832,83243.0,83210.0,0.48384]
[1769850515839,0.29454447,83236.0,83210.0,0.48384]
[1769850516035,0.29454447,83236.0,83210.0,0.59216]
[1769850516239,0.29454447,83231.0,83210.0,0.59216]
[1769850517247,0.29454447,83231.0,83210.0,0.10832]
[1769850517947,0.10832,83232.0,83211.0,0.2980897]
[1769850520345,0.10832,83232.0,83211.0,0.3101267]
[1769850523537,0.10832,83232.0,83211.0,0.2980897]
[1769850524147,0.28139203,83231.0,83210.0,0.10832]
[1769850525547,0.29342703,83224.0,83210.0,0.10832]
[1769850525753,0.28139203,83222.0,83210.0,0.10443106]
[1769850526254,0.28139203,83222.0,83200.0,0.14399616]
[1769850526855,0.28139203,83222.0,83199.0,0.14399616]
[1769850527256,0.012036,83221.0,83198.0,0.52708842]
[1769850527750,0.29342803,83221.0,83198.0,0.25231616]
[1769850528658,0.28139203,83219.0,83198.0,0.25231616]
[1769850528850,0.28139203,83219.0,83198.0,0.10832]
[1769850529049,0.10832,83222.0,83198.0,0.10832]
[1769850529050,0.28139203,83213.0,83198.0,0.10832]
[1769850529953,0.012036,83217.0,83198.0,0.10832]
[1769850530856,0.29342803,83217.0,83198.0,0.10832]
[1769850535764,0.28139203,83213.0,83198.0,0.10832]
[1769850535968,0.012037,83211.0,83198.0,0.10832]
[1769850536168,0.29342903,83211.0,83198.0,0.10832]
[1769850536469,0.29342903,83211.0,83192.0,0.14399616]
[1769850536665,0.29342903,83211.0,83190.0,0.14399616]
[1769850536868,0.29342903,83211.0,83189.0,0.14399616]
[1769850537569,0.28139203,83207.0,83189.0,0.14399616]
[1769850537971,0.10832,83212.0,83190.0,0.27477226]
[1769850538659,0.10832,83212.0,83192.0,0.27477226]
[1769850538972,0.10832,83212.0,83196.0,0.27477226]
[1769850539161,0.10832,83212.0,83197.0,0.27477226]
[1769850540257,0.012036,83222.0,83197.0,0.27477226]
[1769850540462,0.120355,83228.0,83202.0,0.27477226]
[1769850541167,0.10832,83228.0,83204.0,0.41876842]
[1769850541367,0.10832,83228.0,83211.0,0.27477226]
[1769850547377,0.10832,83228.0,83208.0,0.25231616]
[1769850547679,0.28437738,83227.0,83208.0,0.25231616]
[1769850548175,0.28437738,83225.0,83208.0,0.10832]
[1769850548875,0.29641238,83225.0,83208.0,0.10832]
[1769850549480,0.28437738,83225.0,83208.0,0.10832]
[1769850549680,0.10832,83228.0,83211.0,0.27104417]
[1769850549869,0.10832,83228.0,83213.0,0.27104417]
[1769850550473,0.012031,83251.0,83213.0,0.27104417]
[1769850550474,0.10832,83237.0,83217.0,0.27104417]
[1769850550666,0.120353,83241.0,83219.0,0.27104417]
[1769850551072,0.10832,83241.0,83219.0,0.27104417]
[1769850551274,0.10832,83241.0,83221.0,0.27104417]
[1769850551578,0.10832,83241.0,83222.0,0.27104417]
[1769850551875,0.39269738,83241.0,83221.0,0.09605415]
[1769850552070,0.28437738,83240.0,83221.0,0.09605415]
[1769850552469,0.012032,83249.0,83222.0,0.36709832]
[1769850552668,0.012032,83247.0,83223.0,0.27104417]
[1769850552977,0.10832,83246.0,83223.0,0.27104417]
[1769850553174,0.10832,83246.0,83225.0,0.27104417]
[1769850558481,0.10832,83246.0,83228.0,0.27104417]
[1769850558979,0.10832,83246.0,83230.0,0.27104417]
[1769850563178,0.28437738,83234.0,83215.0,0.09605415]
[1769850563488,0.28437738,83232.0,83211.0,0.09605415]
[1769850563676,0.28437738,83230.0,83211.0,0.09605415]
[1769850563989,0.28437738,83230.0,83210.0,0.10828]
[1769850564182,0.120314,83231.0,83210.0,0.10828]
[1769850564183,0.28437738,83227.0,83210.0,0.10828]
[1769850564481,0.28437738,83225.0,83210.0,0.10828]
[1769850565282,0.012034,83229.0,83210.0,0.10828]
[1769850565479,0.29641138,83229.0,83210.0,0.10828]
[1769850568981,0.28437738,83226.0,83210.0,0.10828]
[1769850569385,0.28437738,83224.0,83210.0,0.10828]
[1769850569591,0.28437738,83214.0,83199.0,0.10832]
[1769850573186,0.28437738,83214.0,83192.0,0.76516417]
[1769850574089,0.28437738,83214.0,83198.0,0.09605415]
[1769850574493,0.28437738,83214.0,83197.0,0.09605415]
[1769850575389,0.28437738,83212.0,83194.0,0.09605415]
[1769850575995,0.39269738,83217.0,83195.0,0.27104417]
[1769850576181,0.28437738,83216.0,83195.0,0.36709832]
[1769850576383,0.28437738,83216.0,83195.0,0.27104417]
[1769850576582,0.5028,83221.0,83202.0,0.28826522]
[1769850576785,0.10832,83220.0,83202.0,0.28826522]
[1769850576982,0.10832,83220.0,83208.0,0.28826522]
[1769850577591,0.10832,83220.0,83202.0,0.38431937]
[1769850578286,0.28744752,83217.0,83199.0,0.20437415]
[1769850579079,0.10832,83220.0,83200.0,0.28826522]
[1769850580300,0.120356,83220.0,83200.0,0.28826522]
[1769850580796,0.120356,83220.0,83199.0,0.20427317]
[1769850580797,0.29056987,83217.0,83199.0,0.09595317]
[1769850580993,0.29056987,83215.0,83198.0,0.09595317]
[1769850582795,0.29056987,83215.0,83197.0,0.09595317]
[1769850584090,0.29056987,83215.0,83196.0,0.09595317]
[1769850584487,0.501076,83216.0,83197.0,0.27379985]
[1769850584488,0.48904,83216.0,83197.0,0.27379985]
[1769850584695,0.48904,83216.0,83198.0,0.27379985]
[1769850585090,0.10832,83220.0,83199.0,0.27379985]
[1769850585294,0.10832,83220.0,83202.0,0.27379985]
[1769850585994,0.10832,83220.0,83206.0,0.28583785]
[1769850586396,0.10832,83220.0,83206.0,0.27379985]
[1769850587388,0.012037,83213.0,83204.0,0.09595317]
[1769850587589,0.29056987,83213.0,83198.0,0.09595317]
[1769850587895,0.012037,83212.0,83196.0,0.09595317]
[1769850588288,0.30260687,83208.0,83194.0,0.09595317]
[1769850588495,0.4998,83212.0,83187.0,0.17868861]
[1769850588496,0.012038,83203.0,83190.0,0.09595317]
[1769850589291,0.30260787,83206.0,83190.0,0.09595317]
[1769850589898,0.01204,83190.0,83173.0,0.17868861]
[1769850590095,0.01204,83190.0,83169.0,0.09595317]
[1769850590696,0.29056987,83191.0,83169.0,0.09595317]
[1769850591004,0.30260987,83191.0,83169.0,0.09595317]
[1769850592605,0.30260987,83191.0,83167.0,0.28597992]
[1769850592796,0.30260987,83191.0,83168.0,0.36975302]
[1769850593197,0.30260987,83191.0,83169.0,0.27379985]
[1769850593803,0.01204,83189.0,83169.0,0.27379985]
[1769850594002,0.10832,83188.0,83169.0,0.27379985]
[1769850597597,0.10832,83188.0,83169.0,0.28584285]
[1769850598000,0.10832,83188.0,83173.0,0.27379985]
[1769850598208,0.10832,83199.0,83182.0,0.27379985]
[1769850598596,0.10832,83199.0,83184.0,0.27379985]
[1769850599498,0.10832,83199.0,83186.0,0.27379985]
[1769850599707,0.10832,83199.0,83188.0,0.27379985]
[1769850600102,0.10832,83199.0,83190.0,0.27379985]
[1769850600499,0.10812099,83199.0,83190.0,0.27379985]
[1769850600801,0.10405084,83199.0,83192.0,0.27379985]
[1769850601207,0.10405084,83199.0,83193.0,0.27379985]
[1769850601517,0.10836,83211.0,83193.0,0.27379985]
[1769850601809,0.10836,83211.0,83195.0,0.27379985]
[1769850602402,0.012036,83221.0,83199.0,0.27379985]
[1769850602711,0.012035,83222.0,83201.0,0.27379985]
[1769850605708,0.29056987,83215.0,83189.0,0.27379985]
[1769850606009,0.30260687,83209.0,83190.0,0.10832]
[1769850606209,0.30260687,83209.0,83190.0,0.20427317]
[1769850611211,0.29056987,83209.0,83190.0,0.10832]
[1769850611417,0.012038,83203.0,83190.0,0.10832]
[1769850611710,0.30260687,83209.0,83190.0,0.10832]
[1769850612018,0.012037,83209.0,83191.0,0.37452965]
[1769850612205,0.012037,83209.0,83192.0,0.27857648]
[1769850612614,0.10832,83211.0,83192.0,0.27857648]
[1769850612814,0.012037,83210.0,83192.0,0.27857648]
[1769850614114,0.10832,83211.0,83192.0,0.29061648]
[1769850614313,0.27729563,83215.0,83195.0,0.27857648]
[1769850614511,0.27729563,83215.0,83197.0,0.012039]
[1769850614512,0.10832,83214.0,83197.0,0.012039]
[1769850614711,0.10832,83214.0,83197.0,0.27857648]
[1769850619321,0.120357,83214.0,83197.0,0.27857648]
[1769850621722,0.012037,83212.0,83197.0,0.27857648]
[1769850622814,0.012037,83212.0,83199.0,0.27857648]
[1769850626523,0.012037,83215.0,83200.0,0.2053131]
[1769850626827,0.012036,83218.0,83201.0,0.27857648]
[1769850627126,0.012036,83218.0,83202.0,0.27857648]
[1769850629724,0.10832,83225.0,83202.0,0.27857648]
[1769850629925,0.012035,83223.0,83202.0,0.29061448]
[1769850630131,0.012035,83223.0,83203.0,0.27857648]
[1769850630529,0.012035,83223.0,83205.0,0.27857648]
[1769850631328,0.10832,83225.0,83205.0,0.27857648]
[1769850631723,0.10832,83225.0,83207.0,0.27857648]
[1769850632932,0.120355,83225.0,83209.0,0.27857648]
[1769850635531,0.012033,83242.0,83204.0,0.012038]
[1769850635532,0.012033,83241.0,83220.0,0.27857648]
[1769850635825,0.3095259,83251.0,83222.0,0.27857648]
[1769850635826,0.012033,83242.0,83222.0,0.27857648]
[1769850636031,0.012033,83242.0,83220.0,0.10832]
[1769850636032,0.27729563,83241.0,83220.0,0.10832]
[1769850636226,0.27729563,83239.0,83220.0,0.38689648]
[1769850636430,0.10832,83242.0,83221.0,0.27857648]
[1769850636631,0.012033,83241.0,83221.0,0.27857648]
[1769850637221,0.013033,83241.0,83221.0,0.27857648]
[1769850637432,0.013033,83241.0,83222.0,0.09595317]
[1769850637636,0.013033,83241.0,83223.0,0.28238514]
[1769850638435,0.2901921,83241.0,83222.0,0.09595317]
[1769850638631,0.2891921,83241.0,83222.0,0.09595317]
[1769850639232,0.2771591,83239.0,83222.0,0.09595317]
[1769850639735,0.2771591,83239.0,83220.0,0.10832]
[1769850639927,0.2771591,83239.0,83221.0,0.09595317]
[1769850640528,0.2771591,83239.0,83220.0,0.10832]
[1769850641028,0.28522584,83235.0,83220.0,0.10832]
[1769850645540,0.29725984,83235.0,83220.0,0.10832]
[1769850647542,0.012033,83238.0,83222.0,0.29123695]
[1769850649344,0.012031,83251.0,83222.0,0.29123695]
[1769850649345,0.012032,83245.0,83222.0,0.30327195]
[1769850649546,0.012031,83251.0,83222.0,0.30327195]
[1769850649742,0.28522584,83252.0,83221.0,0.09595317]
[1769850649743,0.29725684,83252.0,83224.0,0.29123695]
[1769850649942,0.012031,83250.0,83227.0,0.29123695]
[1769850650138,0.012032,83248.0,83227.0,0.30327195]
[1769850650437,0.012032,83248.0,83229.0,0.29123695]
[1769850650641,0.012032,83248.0,83231.0,0.29123695]
[1769850651144,0.012032,83248.0,83233.0,0.29123695]
[1769850651346,0.012031,83251.0,83233.0,0.29123695]
[1769850651542,0.10832,83253.0,83240.0,0.20508356]
[1769850651745,0.10832,83253.0,83241.0,0.29123695]
[1769850651946,0.10832,83253.0,83243.0,0.29123695]
[1769850652636,0.10832,83253.0,83244.0,0.29123695]
[1769850653043,0.10832,83253.0,83245.0,0.09595317]
[1769850653641,0.10828,83263.0,83246.0,0.29123695]
[1769850654038,0.10828,83263.0,83250.0,0.20508356]
[1769850654239,0.10828,83263.0,83246.0,0.29123695]
[1769850654641,0.10828,83263.0,83251.0,0.29123695]
[1769850655148,0.10828,83263.0,83246.0,0.50556]
[1769850655149,0.10828,83263.0,83253.0,0.29123695]
[1769850655540,0.10828,83263.0,83253.0,0.38719012]
[1769850657143,0.28522584,83262.0,83246.0,0.50556]
[1769850657342,0.28522584,83262.0,83247.0,0.09595317]
[1769850657343,0.29725584,83262.0,83247.0,0.09595317]
[1769850657543,0.29725584,83262.0,83242.0,0.09595317]
[1769850658048,0.10828,83263.0,83242.0,0.09595317]
[1769850658049,0.28522584,83259.0,83242.0,0.09595317]
[1769850659048,0.20508356,83252.0,83242.0,0.09595317]
[1769850660352,0.20508356,83260.0,83243.0,0.29123695]
[1769850660538,0.20508356,83260.0,83245.0,0.29123695]
[1769850660743,0.20508356,83260.0,83247.0,0.29123695]
[1769850661344,0.10828,83263.0,83247.0,0.30326895]
[1769850661550,0.10828,83277.0,83254.0,0.29123695]
[1769850661743,0.10828,83277.0,83241.0,0.15604248]
[1769850661744,0.10828,83277.0,83258.0,0.29123695]
[1769850661938,0.10828,83277.0,83259.0,0.29123695]
[1769850662151,0.10828,83277.0,83260.0,0.29123695]
[1769850662351,0.28522584,83276.0,83259.0,0.09595317]
[1769850662653,0.29725384,83276.0,83259.0,0.09595317]
[1769850668744,0.012028,83276.0,83259.0,0.39327007]
[1769850669741,0.012028,83276.0,83260.0,0.2973169]
[1769850669944,0.29354442,83281.0,83260.0,0.2973169]
[1769850672650,0.433,83286.0,83260.0,0.2973169]
[1769850672846,0.10828,83288.0,83264.0,0.2973169]
[1769850673050,0.10828,83288.0,83266.0,0.2973169]
[1769850673351,0.012025,83291.0,83268.0,0.2973169]
[1769850673558,0.012025,83291.0,83270.0,0.2973169]
[1769850673857,0.30556942,83291.0,83270.0,0.2973169]
[1769850674252,0.29354442,83288.0,83269.0,0.09165772]
[1769850674458,0.30557242,83275.0,83255.0,0.10824]
[1769850674654,0.29354442,83275.0,83255.0,0.61776]
[1769850675349,0.29354442,83275.0,83255.0,0.9150769]
[1769850677758,0.29354442,83275.0,83256.0,0.2973169]
[1769850680155,0.012027,83278.0,83256.0,0.2973169]
[1769850680354,0.30557142,83278.0,83256.0,0.2973169]
[1769850680554,0.10824,83280.0,83256.0,0.2973169]
[1769850682856,0.29354442,83279.0,83256.0,0.2973169]
[1769850683056,0.10824,83280.0,83255.0,0.61776]
[1769850683057,0.012028,83271.0,83255.0,0.61776]
[1769850683258,0.29354442,83271.0,83251.0,0.44132638]
[1769850683763,0.29354442,83268.0,83250.0,0.51212]
[1769850683963,0.29354442,83267.0,83250.0,0.51212]
[1769850684564,0.29354442,83263.0,83249.0,0.10824]
[1769850690264,0.29354442,83258.0,83235.0,0.2973169]
[1769850690465,0.29354442,83256.0,83235.0,0.2973169]
[1769850690764,0.29354442,83255.0,83235.0,0.2973169]
[1769850692570,0.29354442,83255.0,83233.0,0.62164]
[1769850692877,0.29354442,83255.0,83233.0,0.9189569]
[1769850693369,0.29354442,83255.0,83234.0,0.2973169]
[1769850694164,0.012031,83251.0,83233.0,0.14400948]
[1769850694469,0.29354442,83246.0,83227.0,0.00012735]
[1769850694661,0.29354442,83245.0,83227.0,0.00012735]
[1769850696063,0.30557642,83245.0,83227.0,0.00012735]
[1769850698167,0.29206612,83243.0,83227.0,0.00012735]
[1769850702273,0.28003412,83243.0,83227.0,0.00012735]
[1769850709774,0.29523366,83242.0,83227.0,0.00012735]
[1769850709976,0.29523366,83242.0,83220.0,0.10828]
[1769850709977,0.29523366,83227.0,83208.0,0.17997432]
[1769850710182,0.29523366,83223.0,83200.0,0.2888317]
[1769850710478,0.29523366,83219.0,83196.0,0.2767937]
[1769850710976,0.30726966,83217.0,83196.0,0.2767937]
[1769850712274,0.30726966,83217.0,83196.0,0.2888327]
[1769850712478,0.29523366,83217.0,83198.0,0.2888327]
[1769850713674,0.00010631,83218.0,83200.0,0.012039]
[1769850713970,0.00010631,83218.0,83198.0,0.2767937]
[1769850713971,0.00010631,83218.0,83205.0,0.2767937]
[1769850717774,0.10828,83222.0,83205.0,0.2767937]
[1769850722073,0.120316,83222.0,83204.0,0.2888317]
[1769850722376,0.29523366,83221.0,83204.0,0.2888317]
[1769850722976,0.30726966,83221.0,83204.0,0.2888317]
[1769850724184,0.30726966,83221.0,83204.0,0.2767937]
[1769850725674,0.012036,83220.0,83204.0,0.2767937]
[1769850728285,0.012035,83224.0,83206.0,0.27958811]
[1769850728484,0.012035,83225.0,83211.0,0.27958811]
[1769850728986,0.012035,83228.0,83211.0,0.27958811]
[1769850730082,0.012035,83228.0,83212.0,0.10832]
[1769850730283,0.39318978,83236.0,83213.0,0.27958811]
[1769850730482,0.40522278,83236.0,83213.0,0.27958811]
[1769850730993,0.28486978,83235.0,83213.0,0.27958811]
[1769850732380,0.10832,83246.0,83225.0,0.27958811]
[1769850732684,0.10832,83245.0,83225.0,0.27958811]
[1769850733188,0.10832,83245.0,83225.0,0.29162311]
[1769850733488,0.10832,83245.0,83225.0,0.27958811]
[1769850733692,0.120352,83245.0,83225.0,0.27958811]
[1769850735290,0.40522178,83245.0,83225.0,0.27958811]
[1769850735482,0.28486978,83242.0,83222.0,0.10832]
[1769850735682,0.10832,83245.0,83222.0,0.10832]
[1769850735683,0.28486978,83234.0,83222.0,0.10832]
[1769850735879,0.28486978,83227.0,83206.0,0.11132]
[1769850736091,0.28486978,83227.0,83206.0,0.10832]
[1769850737092,0.28486978,83224.0,83206.0,0.10832]
[1769850738488,0.012035,83226.0,83207.0,0.27958811]
[1769850738681,0.012034,83232.0,83209.0,0.012037]
[1769850738888,0.012034,83232.0,83210.0,0.27958811]
[1769850738889,0.10832,83232.0,83210.0,0.27958811]
[1769850739082,0.10832,83232.0,83212.0,0.27958811]
[1769850739384,0.10832,83232.0,83216.0,0.27958811]
[1769850739690,0.012034,83235.0,83216.0,0.27958811]
[1769850739888,0.120354,83235.0,83216.0,0.27958811]
[1769850744404,0.205299,83230.0,83216.0,0.27958811]
[1769850745091,0.205299,83230.0,83216.0,0.29162411]
[1769850748602,0.217333,83230.0,83216.0,0.27958811]
[1769850748905,0.217333,83230.0,83214.0,0.42372524]
[1769850749106,0.205299,83224.0,83215.0,0.42372524]
[1769850749510,0.205299,83224.0,83216.0,0.27958811]
[1769850749810,0.205299,83224.0,83215.0,0.14413713]
[1769850750600,0.205299,83224.0,83214.0,0.14413713]
[1769850752205,0.205299,83224.0,83215.0,0.14413713]
[1769850755214,0.205299,83225.0,83215.0,0.14413713]
[1769850756415,0.10832,83235.0,83218.0,0.27958811]
[1769850756611,0.205299,83230.0,83219.0,0.27958811]
[1769850756819,0.205299,83230.0,83218.0,0.14413713]
[1769850757708,0.205299,83230.0,83219.0,0.14413713]
[1769850759715,0.205299,83230.0,83220.0,0.28734183]
[1769850760018,0.012034,83235.0,83222.0,0.28734183]
[1769850760320,0.20140614,83234.0,83222.0,0.28734183]
[1769850760719,0.10832,83236.0,83222.0,0.28734183]
[1769850762222,0.10832,83236.0,83223.0,0.28734183]
[1769850762821,0.10832,83236.0,83222.0,0.14413713]
[1769850763011,0.28395502,83235.0,83222.0,0.14413713]
[1769850764018,0.28395502,83235.0,83221.0,0.10832]
[1769850764525,0.28395502,83234.0,83221.0,0.10832]
[1769850765112,0.20140614,83235.0,83221.0,0.10832]
[1769850765320,0.012033,83239.0,83222.0,0.28734183]
[1769850765626,0.20140614,83237.0,83222.0,0.28734183]
[1769850766727,0.012033,83239.0,83222.0,0.28734183]
[1769850766925,0.20140614,83237.0,83222.0,0.28734183]
[1769850767629,0.20140614,83237.0,83226.0,0.28734183]
[1769850767829,0.10828,83241.0,83229.0,0.012034]
[1769850768029,0.1970535,83240.0,83231.0,0.28734183]
[1769850768231,0.012031,83249.0,83231.0,0.28734183]
[1769850768530,0.012031,83249.0,83230.0,0.743253]
[1769850768531,0.10828,83251.0,83233.0,0.29937583]
[1769850768829,0.28395502,83244.0,83230.0,0.67005713]
[1769850769023,0.28395502,83244.0,83230.0,0.52592]
[1769850769223,0.28395502,83242.0,83230.0,0.52592]
[1769850769423,0.48925402,83240.0,83230.0,0.52592]
[1769850769625,0.28395502,83239.0,83230.0,0.52592]
[1769850769826,0.28395502,83238.0,83227.0,0.14413713]
[1769850770024,0.28395502,83236.0,83224.0,0.14413713]
[1769850770222,0.48925402,83233.0,83224.0,0.14413713]
[1769850770628,0.1970535,83232.0,83224.0,0.14413713]
[1769850772531,0.28395502,83233.0,83224.0,0.14413713]
[1769850772734,0.1970535,83232.0,83224.0,0.14413713]
[1769850773229,0.1970535,83232.0,83223.0,0.14413713]
[1769850773736,0.28395502,83239.0,83224.0,0.14413713]
[1769850773939,0.1970535,83236.0,83224.0,0.14413713]
[1769850774131,0.1970535,83236.0,83221.0,0.40769683]
[1769850775437,0.1970535,83236.0,83221.0,0.39566183]
[1769850775738,0.1970535,83236.0,83222.0,0.28734183]
[1769850776929,0.1970535,83236.0,83224.0,0.012035]
[1769850778740,0.1970535,83236.0,83224.0,0.29937683]
[1769850778941,0.10828,83241.0,83229.0,0.28734183]
[1769850779146,0.3053335,83241.0,83229.0,0.28734183]
[1769850780640,0.28395502,83249.0,83229.0,0.28734183]
[1769850780641,0.205299,83250.0,83230.0,0.28734183]
[1769850780840,0.1970535,83250.0,83236.0,0.28734183]
[1769850781035,0.50524,83251.0,83236.0,0.28734183]
[1769850781236,0.10828,83252.0,83236.0,0.28734183]
[1769850781541,0.10828,83252.0,83238.0,0.28734183]
[1769850784141,0.10828,83252.0,83239.0,0.09605783]
[1769850785139,0.3053335,83252.0,83239.0,0.09605783]
[1769850785342,0.28395502,83251.0,83239.0,0.09605783]
[1769850785540,0.28395502,83242.0,83225.0,0.17997432]
[1769850785741,0.28395502,83240.0,83222.0,0.19200932]
[1769850785942,0.28395502,83240.0,83222.0,0.17997432]
[1769850786146,0.012033,83241.0,83222.0,0.17997432]
[1769850786147,0.28395502,83238.0,83222.0,0.17997432]
[1769850788052,0.27211177,83237.0,83222.0,0.17997432]
[1769850789635,0.32502814,83237.0,83222.0,0.17997432]
[1769850790153,0.05291637,83236.0,83222.0,0.17997432]
[1769850792649,0.05291637,83236.0,83222.0,0.46483745]
[1769850792855,0.05291637,83236.0,83223.0,0.012035]
[1769850794159,0.05291637,83236.0,83224.0,0.17997432]
[1769850795354,0.05291637,83236.0,83225.0,0.17997432]
[1769850796646,0.05291637,83236.0,83226.0,0.17997432]
[1769850796954,0.05291637,83236.0,83227.0,0.28486313]
[1769850797146,0.10828,83243.0,83229.0,0.29689713]
[1769850797450,0.04903783,83242.0,83229.0,0.29689713]
[1769850800651,0.28414477,83238.0,83227.0,0.17997432]
[1769850800843,0.28414477,83238.0,83226.0,0.17997432]
[1769850800844,0.3211496,83237.0,83226.0,0.17997432]
[1769850801755,0.04903783,83237.0,83226.0,0.17997432]
[1769850806257,0.04903783,83237.0,83225.0,1.00155745]
[1769850807059,0.04903783,83237.0,83226.0,0.28486313]
[1769850810360,0.10828,83243.0,83231.0,0.28486313]
[1769850810552,0.10828,83243.0,83233.0,0.28486313]
[1769850815151,0.10828,83243.0,83235.0,0.28486313]
[1769850815459,0.012031,83251.0,83237.0,0.28486313]
[1769850815659,0.012031,83253.0,83238.0,0.28486313]
[1769850815858,0.012031,83253.0,83238.0,0.39314313]
[1769850816059,0.012031,83253.0,83239.0,0.28486313]
[1769850816259,0.10828,83256.0,83239.0,0.28486313]
[1769850816459,0.27211177,83266.0,83247.0,0.28486313]
[1769850817968,0.01203,83260.0,83247.0,0.28486313]
[1769850821864,0.30012417,83255.0,83239.0,0.14396608]
[1769850822068,0.012031,83252.0,83239.0,0.14396608]
[1769850822269,0.28809317,83247.0,83238.0,0.25224608]
[1769850822568,0.28809317,83247.0,83238.0,0.10828]
[1769850824179,0.28809317,83247.0,83232.0,0.5506]
[1769850825462,0.10828,83250.0,83233.0,0.28569672]
[1769850827070,0.120311,83250.0,83233.0,0.29773072]
[1769850828265,0.012032,83248.0,83233.0,0.29773072]
[1769850828973,0.28809317,83244.0,83232.0,0.5506]
[1769850829278,0.28809317,83244.0,83228.0,0.10828]
[1769850829279,0.012032,83243.0,83228.0,0.10828]
[1769850829766,0.30012517,83243.0,83228.0,0.10828]
[1769850830163,0.10828,83250.0,83221.0,0.55524]
[1769850830164,0.28809317,83238.0,83221.0,0.55524]
[1769850830368,0.28809317,83238.0,83221.0,0.55224]
[1769850830566,0.28809317,83248.0,83221.0,0.55224]
[1769850830875,0.10828,83250.0,83227.0,0.012035]
[1769850831168,0.012032,83244.0,83228.0,0.28569672]
[1769850831375,0.012032,83247.0,83230.0,0.28569672]
[1769850831562,0.10828,83250.0,83232.0,0.28569672]
[1769850831762,0.10828,83250.0,83235.0,0.28569672]
[1769850832669,0.120311,83250.0,83235.0,0.28569672]
[1769850833171,0.10828,83250.0,83235.0,0.28569672]
[1769850833369,0.10828,83250.0,83235.0,0.29772972]
[1769850833675,0.10828,83250.0,83235.0,0.28569672]
[1769850833973,0.10828,83250.0,83237.0,0.28569672]
[1769850834371,0.012031,83254.0,83239.0,0.28569672]
[1769850834677,0.01203,83257.0,83239.0,0.28569672]
[1769850834972,0.01203,83257.0,83241.0,0.28569672]
[1769850835369,0.01203,83259.0,83241.0,0.28569672]
[1769850835562,0.01203,83259.0,83242.0,0.14396608]
[1769850835761,0.01203,83259.0,83243.0,0.28569672]
[1769850835974,0.01203,83257.0,83243.0,0.28569672]
[1769850837273,0.10828,83261.0,83243.0,0.28569672]
[1769850837473,0.01203,83260.0,83243.0,0.28569672]
[1769850837668,0.01203,83258.0,83243.0,0.28569672]
[1769850838373,0.01203,83257.0,83243.0,0.28569672]
[1769850838775,0.012031,83255.0,83243.0,0.28569672]
[1769850839673,0.012031,83255.0,83242.0,0.14396608]
[1769850839973,0.012031,83252.0,83240.0,0.66116]
[1769850840677,0.30012417,83252.0,83240.0,0.66116]
[1769850841173,0.30012417,83252.0,83229.0,0.24037339]
[1769850841174,0.28809317,83245.0,83234.0,0.17997432]
[1769850841371,0.28809317,83245.0,83229.0,0.30028832]
[1769850841574,0.28809317,83245.0,83229.0,0.120314]
[1769850842267,0.28809317,83245.0,83229.0,0.30028832]
[1769850842980,0.012032,83244.0,83229.0,0.30028832]
[1769850843770,0.012032,83244.0,83229.0,0.120314]
[1769850845582,0.28809317,83245.0,83230.0,0.012034]
[1769850845885,0.120311,83250.0,83232.0,0.28569672]
[1769850846177,0.10828,83250.0,83242.0,0.28569672]
[1769850846480,0.01203,83257.0,83244.0,0.28569672]
[1769850846781,0.012031,83256.0,83244.0,0.28569672]
[1769850847378,0.10828,83260.0,83244.0,0.28569672]
[1769850847379,0.012031,83255.0,83244.0,0.28569672]
[1769850847880,0.01203,83258.0,83244.0,0.28569672]
[1769850848082,0.01203,83257.0,83244.0,0.28569672]
[1769850852979,0.012031,83255.0,83244.0,0.28569672]
[1769850853180,0.012031,83251.0,83240.0,0.10828]
[1769850856584,0.012031,83251.0,83240.0,0.40768005]
[1769850856792,0.10828,83260.0,83243.0,0.29940005]
[1769850856983,0.01203,83258.0,83243.0,0.29940005]
[1769850858190,0.01203,83257.0,83243.0,0.29940005]
[1769850858392,0.28767252,83257.0,83240.0,0.012033]
[1769850858692,0.27564252,83256.0,83238.0,0.29940005]
[1769850859984,0.012031,83252.0,83238.0,0.29940005]
[1769850860385,0.012031,83252.0,83243.0,0.09600745]
[1769850861395,0.012031,83252.0,83244.0,0.09600745]
[1769850861801,0.012031,83252.0,83243.0,0.09600745]
[1769850861993,0.012031,83255.0,83244.0,0.09600745]
[1769850862495,0.012031,83254.0,83244.0,0.09600745]
[1769850864205,0.012031,83254.0,83245.0,0.09600745]
[1769850866308,0.27564252,83247.0,83231.0,0.29940005]
[1769850867105,0.21721219,83241.0,83231.0,0.29940005]
[1769850868806,0.20517919,83241.0,83231.0,0.29940005]
[1769850870006,0.20517919,83241.0,83229.0,0.29940005]
[1769850870908,0.27564252,83240.0,83227.0,0.25229043]